bitfinex/quotes_SOLUSD_20230404
["timestamp","ask_amount","ask_price","bid_price","bid_amount"]
[1680617402883,20.0,20.904,20.886,39.15]
[1680617403388,20.0,20.904,20.89,20.0]
[1680617403691,20.0,20.904,20.886,39.15]
[1680617403883,20.0,20.904,20.89,20.0]
[1680617405577,20.0,20.904,20.887,20.0]
[1680617406193,20.0,20.904,20.89,20.0]
[1680617409091,20.0,20.904,20.889,136.8688]
[1680617409287,17.0,20.903,20.889,20.0]
[1680617409491,20.0,20.901,20.889,20.0]
[1680617410093,17.0,20.9,20.889,20.0]
[1680617410293,17.0,20.901,20.889,20.0]
[1680617411201,20.0,20.902,20.889,20.0]
[1680617411574,20.0,20.903,20.889,20.0]
[1680617411797,20.0,20.907,20.889,20.0]
[1680617412098,17.0,20.906,20.889,128.7754]
[1680617412279,20.0,20.905,20.889,128.7754]
[1680617412595,17.0,20.904,20.889,128.7754]
[1680617412794,20.0,20.903,20.889,128.7754]
[1680617417505,20.0,20.903,20.89,20.0]
[1680617417702,20.0,20.907,20.89,20.0]
[1680617418003,17.0,20.906,20.89,131.134]
[1680617418395,20.0,20.905,20.89,131.134]
[1680617419306,20.0,20.905,20.891,17.0]
[1680617419507,40.0,20.908,20.891,17.0]
[1680617419818,40.0,20.908,20.89,131.134]
[1680617420005,40.0,20.908,20.891,17.0]
[1680617420197,20.0,20.908,20.891,17.0]
[1680617420396,20.0,20.909,20.892,17.0]
[1680617420902,20.0,20.909,20.891,17.0]
[1680617421291,27.18696922,20.909,20.891,17.0]
[1680617421707,17.0,20.908,20.891,17.0]
[1680617421905,20.0,20.907,20.891,17.0]
[1680617423204,17.0,20.906,20.89,17.0]
[1680617423405,20.0,20.905,20.89,17.0]
[1680617424092,20.0,20.908,20.89,17.0]
[1680617424294,20.0,20.908,20.891,20.0]
[1680617424609,20.0,20.908,20.892,17.0]
[1680617425408,20.0,20.909,20.892,17.0]
[1680617427109,17.0,20.908,20.892,17.0]
[1680617427310,20.0,20.907,20.892,17.0]
[1680617428010,17.0,20.906,20.891,17.0]
[1680617428309,20.0,20.905,20.891,17.0]
[1680617430607,20.0,20.908,20.891,17.0]
[1680617430817,17.0,20.907,20.891,17.0]
[1680617430998,20.0,20.906,20.891,17.0]
[1680617432706,20.0,20.909,20.891,17.0]
[1680617433412,27.12,20.91,20.892,40.0]
[1680617433718,27.12,20.91,20.893,17.0]
[1680617434013,27.12,20.91,20.894,20.0]
[1680617434210,27.12,20.91,20.895,17.0]
[1680617435799,27.12,20.91,20.896,20.0]
[1680617436001,27.12,20.91,20.897,17.0]
[1680617440619,20.0,20.915,20.897,17.0]
[1680617440917,37.0,20.914,20.897,17.0]
[1680617442007,20.0,20.914,20.897,17.0]
[1680617442204,20.0,20.914,20.898,20.0]
[1680617442401,20.0,20.915,20.899,17.0]
[1680617442918,20.0,20.916,20.9,40.0]
[1680617443214,20.0,20.916,20.901,17.0]
[1680617443421,20.0,20.916,20.902,20.0]
[1680617443717,20.0,20.916,20.903,17.0]
[1680617444815,20.0,20.916,20.902,20.0]
[1680617445011,20.0,20.916,20.903,17.0]
[1680617445212,20.0,20.916,20.902,17.0]
[1680617448015,20.0,20.916,20.903,20.0]
[1680617448218,20.0,20.916,20.904,17.0]
[1680617449031,20.0,20.916,20.905,20.0]
[1680617449205,117.9715,20.924,20.906,17.0]
[1680617456820,117.9715,20.924,20.903,20.0]
[1680617456821,17.0,20.921,20.903,20.0]
[1680617457026,17.0,20.921,20.904,17.0]
[1680617457419,17.0,20.921,20.903,17.0]
[1680617457619,20.0,20.92,20.902,17.0]
[1680617458634,47.21,20.92,20.902,17.0]
[1680617458930,17.0,20.919,20.902,17.0]
[1680617460539,17.0,20.919,20.903,20.0]
[1680617461838,17.0,20.919,20.902,17.0]
[1680617464640,17.0,20.919,20.903,20.0]
[1680617465032,17.0,20.919,20.902,17.0]
[1680617466648,24.18696922,20.919,20.9,112.729]
[1680617466848,20.0,20.917,20.896,20.0]
[1680617467035,37.0,20.916,20.897,17.0]
[1680617467238,37.0,20.916,20.898,20.0]
[1680617467745,108.2102,20.915,20.898,20.0]
[1680617467946,37.0,20.914,20.898,20.0]
[1680617470450,37.0,20.914,20.899,17.0]
[1680617471058,20.0,20.914,20.9,20.0]
[1680617471236,20.0,20.914,20.901,17.0]
[1680617472535,108.2102,20.915,20.902,20.0]
[1680617472735,108.2102,20.915,20.904,20.0]
[1680617472939,19.117,20.924,20.904,20.0]
[1680617473145,117.9636,20.923,20.905,17.0]
[1680617473541,117.9636,20.923,20.904,27.18696922]
[1680617473750,117.9636,20.923,20.905,17.0]
[1680617474162,117.9636,20.923,20.905,24.18696922]
[1680617476155,117.9636,20.923,20.906,20.0]
[1680617476360,117.9636,20.923,20.907,17.0]
[1680617483649,117.9636,20.923,20.906,17.0]
[1680617484744,27.3,20.92,20.901,20.0]
[1680617484943,27.3,20.92,20.902,20.0]
[1680617485874,17.0,20.919,20.902,20.0]
[1680617486159,27.3,20.92,20.902,20.0]
[1680617486362,17.0,20.919,20.902,20.0]
[1680617486555,27.3,20.92,20.902,20.0]
[1680617486861,27.3,20.92,20.903,17.0]
[1680617487768,37.0,20.919,20.903,17.0]
[1680617488149,20.0,20.919,20.903,17.0]
[1680617488763,20.0,20.917,20.903,17.0]
[1680617488967,20.0,20.917,20.897,7.18696922]
[1680617489152,147.2113,20.916,20.895,82.8711187]
[1680617489359,27.3,20.91,20.895,82.8711187]
[1680617490451,27.3,20.91,20.896,17.0]
[1680617492567,27.3,20.91,20.895,63.7281187]
[1680617492746,57.0,20.909,20.895,63.7281187]
[1680617493257,7.18696922,20.908,20.879,5.5413944]
[1680617493564,20.0,20.905,20.881,20.0]
[1680617493780,20.0,20.904,20.881,20.0]
[1680617494062,37.0,20.904,20.88,41.1679768]
[1680617494268,20.0,20.903,20.882,20.0]
[1680617494467,37.0,20.902,20.881,7.18696922]
[1680617494647,20.0,20.901,20.882,20.0]
[1680617494846,17.0,20.9,20.882,20.0]
[1680617495052,133.1927,20.9,20.882,27.18696922]
[1680617495646,115.7088,20.899,20.882,27.18696922]
[1680617495846,115.7088,20.899,20.884,20.0]
[1680617496050,115.7088,20.899,20.885,17.0]
[1680617497863,115.7088,20.899,20.884,17.0]
[1680617502978,115.7088,20.899,20.884,24.18696922]
[1680617503856,115.7088,20.899,20.894,38.281437]
[1680617504076,116.1927,20.9,20.894,38.281437]
[1680617506781,17.0,20.899,20.894,38.281437]
[1680617507184,116.1927,20.9,20.894,38.281437]
[1680617514975,143.2527,20.9,20.894,38.281437]
[1680617515180,17.0,20.899,20.894,38.281437]
[1680617516579,27.06,20.9,20.894,38.281437]
[1680617520582,20.0,20.902,20.894,38.281437]
[1680617520779,20.0,20.904,20.894,38.281437]
[1680617520992,20.0,20.906,20.894,38.281437]
[1680617521283,20.0,20.906,20.887,7.18696922]
[1680617521488,20.0,20.906,20.888,17.0]
[1680617522282,20.0,20.906,20.889,20.0]
[1680617522479,20.0,20.906,20.89,17.0]
[1680617522678,17.0,20.905,20.888,17.0]
[1680617522877,20.0,20.904,20.888,17.0]
[1680617523479,20.0,20.904,20.886,17.0]
[1680617523880,20.0,20.904,20.887,20.0]
[1680617524081,20.0,20.904,20.888,17.0]
[1680617524280,20.0,20.906,20.888,17.0]
[1680617526176,27.12,20.91,20.888,17.0]
[1680617526493,27.12,20.91,20.891,4.9622948]
[1680617526494,27.03240496,20.91,20.891,4.9622948]
[1680617526692,27.03240496,20.91,20.892,17.0]
[1680617527075,27.03240496,20.91,20.892,36.145]
[1680617527889,27.03240496,20.91,20.893,20.0]
[1680617528090,27.03240496,20.91,20.894,17.0]
[1680617528274,27.03240496,20.91,20.895,20.0]
[1680617528479,27.03240496,20.91,20.896,17.0]
[1680617529291,110.015,20.911,20.897,20.0]
[1680617529492,110.015,20.911,20.898,17.0]
[1680617531695,110.015,20.911,20.899,20.0]
[1680617531995,110.015,20.911,20.9,17.0]
[1680617532888,38.281437,20.913,20.9,17.0]
[1680617533095,38.281437,20.913,20.901,20.0]
[1680617533394,38.281437,20.913,20.902,17.0]
[1680617533593,38.281437,20.913,20.902,16.91416037]
[1680617534089,38.281437,20.913,20.903,20.0]
[1680617535092,35.781437,20.913,20.903,20.0]
[1680617535702,35.781437,20.913,20.904,17.0]
[1680617536787,35.781437,20.913,20.905,20.0]
[1680617537087,35.781437,20.913,20.906,17.0]
[1680617539201,35.781437,20.913,20.905,20.0]
[1680617539407,35.781437,20.913,20.906,17.0]
[1680617547216,27.21,20.92,20.906,17.0]
[1680617547927,17.0,20.919,20.901,20.0]
[1680617548231,20.0,20.918,20.901,20.0]
[1680617549332,20.0,20.918,20.902,17.0]
[1680617551430,37.0,20.919,20.902,17.0]
[1680617553531,81.58696922,20.92,20.902,17.0]
[1680617554531,20.0,20.919,20.902,17.0]
[1680617556131,54.4,20.92,20.902,17.0]
[1680617556633,20.0,20.919,20.902,17.0]
[1680617559831,54.4,20.92,20.903,20.0]
[1680617560026,54.4,20.92,20.904,17.0]
[1680617561026,54.4,20.92,20.901,20.0]
[1680617561226,17.0,20.919,20.901,20.0]
[1680617561427,17.0,20.919,20.902,17.0]
[1680617562826,20.0,20.918,20.902,17.0]
[1680617567035,37.0,20.919,20.902,17.0]
[1680617567242,54.4,20.92,20.902,17.0]
[1680617567443,27.21,20.92,20.902,17.0]
[1680617567646,27.21,20.92,20.903,20.0]
[1680617567852,27.21,20.92,20.904,17.0]
[1680617568234,27.21,20.92,20.905,20.0]
[1680617568436,27.21,20.92,20.906,17.0]
[1680617574750,27.21,20.92,20.904,17.0]
[1680617576946,128.95784512,20.921,20.905,20.0]
[1680617577136,128.95784512,20.921,20.906,17.0]
[1680617578648,128.95784512,20.921,20.907,20.0]
[1680617578838,128.95784512,20.921,20.908,17.0]
[1680617579834,128.95784512,20.921,20.906,17.0]
[1680617582730,114.3213,20.921,20.906,17.0]
[1680617582945,114.3213,20.921,20.907,20.0]
[1680617583148,114.3213,20.921,20.908,17.0]
[1680617585839,114.3213,20.921,20.903,20.0]
[1680617587256,114.3213,20.921,20.902,20.0]
[1680617587545,20.0,20.92,20.902,20.0]
[1680617588145,20.0,20.92,20.901,20.0]
[1680617588455,20.0,20.92,20.902,20.0]
[1680617589538,20.0,20.92,20.901,40.0]
[1680617589539,20.0,20.92,20.901,20.0]
[1680617589738,47.3,20.92,20.901,20.0]
[1680617589939,47.3,20.92,20.902,17.0]
[1680617590544,17.0,20.919,20.902,17.0]
[1680617590747,17.0,20.919,20.898,5.27240551]
[1680617590748,17.0,20.919,20.893,19.145]
[1680617591058,20.0,20.918,20.894,119.9553]
[1680617591252,17.0,20.917,20.894,119.9553]
[1680617591550,20.0,20.916,20.895,20.0]
[1680617592246,20.0,20.917,20.896,17.0]
[1680617592450,17.0,20.916,20.897,20.0]
[1680617592653,20.0,20.915,20.898,17.0]
[1680617592843,20.0,20.915,20.899,20.0]
[1680617593041,20.0,20.915,20.9,17.0]
[1680617594637,20.0,20.915,20.898,17.0]
[1680617597944,20.0,20.916,20.898,17.0]
[1680617598143,20.0,20.917,20.898,17.0]
[1680617598345,17.0,20.916,20.898,17.0]
[1680617598553,20.0,20.915,20.898,17.0]
[1680617599057,20.0,20.917,20.898,17.0]
[1680617599851,17.0,20.916,20.898,17.0]
[1680617600150,20.0,20.915,20.901,20.0]
[1680617600568,20.0,20.917,20.901,20.0]
[1680617600868,17.0,20.916,20.901,20.0]
[1680617601167,20.0,20.915,20.901,20.0]
[1680617601865,20.0,20.917,20.902,17.0]
[1680617606267,20.0,20.917,20.901,20.0]
[1680617607974,17.0,20.916,20.901,20.0]
[1680617608161,20.0,20.915,20.901,20.0]
[1680617610664,20.0,20.915,20.895,20.0]
[1680617610854,17.0,20.914,20.896,17.0]
[1680617611054,20.0,20.913,20.896,17.0]
[1680617614664,20.0,20.913,20.895,17.0]
[1680617615474,17.0,20.912,20.895,17.0]
[1680617616282,117.1203,20.911,20.895,17.0]
[1680617616771,20.0,20.91,20.893,114.4004]
[1680617616982,155.3918,20.91,20.892,34.38671461]
[1680617617264,155.3918,20.91,20.892,20.0]
[1680617617455,182.6018,20.91,20.892,20.0]
[1680617617858,162.6018,20.91,20.892,20.0]
[1680617618283,162.6018,20.91,20.894,20.0]
[1680617620579,145.6018,20.91,20.894,20.0]
[1680617620782,145.6018,20.91,20.895,17.0]
[1680617625468,118.3918,20.91,20.895,17.0]
[1680617629371,118.3918,20.91,20.893,17.0]
[1680617633703,118.3918,20.91,20.894,20.0]
[1680617633877,118.3918,20.91,20.895,17.0]
[1680617635198,118.3918,20.91,20.896,20.0]
[1680617635393,118.3918,20.91,20.897,17.0]
[1680617635892,0.67771669,20.909,20.897,17.0]
[1680617638694,20.0,20.913,20.896,17.0]
[1680617639595,20.0,20.915,20.896,17.0]
[1680617639987,20.0,20.914,20.896,17.0]
[1680617640300,20.0,20.913,20.896,17.0]
[1680617642900,20.0,20.913,20.897,20.0]
[1680617643085,20.0,20.915,20.898,17.0]
[1680617644504,20.0,20.914,20.895,19.143]
[1680617644693,20.0,20.913,20.895,19.143]
[1680617646295,20.0,20.917,20.895,26.73482612]
[1680617646599,20.0,20.917,20.897,20.0]
[1680617646900,20.0,20.917,20.899,20.0]
[1680617647104,20.0,20.917,20.9,17.0]
[1680617647690,20.0,20.918,20.9,17.0]
[1680617647896,17.0,20.917,20.9,17.0]
[1680617648201,20.0,20.916,20.9,17.0]
[1680617650287,20.0,20.918,20.9,17.0]
[1680617655094,113.2426,20.919,20.901,20.0]
[1680617655300,113.2426,20.919,20.902,17.0]
[1680617655610,113.2426,20.919,20.903,5.05314677]
[1680617655810,113.2426,20.919,20.905,20.0]
[1680617656005,113.2426,20.919,20.906,17.0]
[1680617656210,113.2426,20.919,20.907,20.0]
[1680617656397,113.2426,20.919,20.909,20.0]
[1680617656599,113.2426,20.919,20.91,17.0]
[1680617657610,113.2426,20.919,20.908,17.0]
[1680617658295,73.552,20.93,20.908,17.0]
[1680617658495,116.3452,20.929,20.908,17.0]
[1680617659595,116.3452,20.929,20.909,20.0]
[1680617659796,116.3452,20.929,20.91,17.0]
[1680617660509,116.3452,20.929,20.911,20.0]
[1680617660700,116.3452,20.929,20.913,20.0]
[1680617661010,0.4578419,20.921,20.914,17.0]
[1680617661496,0.4578419,20.921,20.915,20.0]
[1680617661806,116.3452,20.929,20.916,17.0]
[1680617662217,116.3452,20.929,20.914,17.0]
[1680617662606,116.3452,20.929,20.915,20.0]
[1680617662924,0.46135665,20.928,20.916,17.0]
[1680617664811,108.9728,20.933,20.916,17.0]
[1680617665008,20.0,20.932,20.916,17.0]
[1680617665904,0.46286226,20.931,20.916,17.0]
[1680617666902,0.46286226,20.931,20.917,20.0]
[1680617667106,0.46286226,20.931,20.918,17.0]
[1680617670024,0.69429339,20.931,20.918,17.0]
[1680617671240,0.69429339,20.931,20.914,7.18696922]
[1680617671524,0.69429339,20.931,20.912,20.0]
[1680617671722,0.69429339,20.931,20.912,26.7683415]
[1680617671923,0.69429339,20.931,20.912,33.95531072]
[1680617672824,0.46286226,20.931,20.912,33.95531072]
[1680617673014,20.0,20.933,20.912,33.95531072]
[1680617673224,20.0,20.933,20.913,17.0]
[1680617673420,139.1687,20.933,20.913,17.0]
[1680617673724,20.0,20.932,20.913,17.0]
[1680617673921,0.46236044,20.93,20.913,17.0]
[1680617674627,0.46236044,20.93,20.915,19.124]
[1680617674916,0.46236044,20.93,20.918,4.27167128]
[1680617675121,0.46236044,20.93,20.92,20.0]
[1680617675327,0.46236044,20.93,20.921,17.0]
[1680617675923,0.46236044,20.93,20.922,20.0]
[1680617676135,0.46236044,20.93,20.924,20.0]
[1680617676304,0.46236044,20.93,20.925,17.0]
[1680617676931,0.46236044,20.93,20.923,17.0]
[1680617677828,14.15145928,20.936,20.923,17.0]
[1680617678011,116.1936,20.939,20.923,17.0]
[1680617678212,116.1936,20.939,20.923,24.18696922]
[1680617678422,116.1936,20.939,20.924,20.0]
[1680617678640,116.1936,20.939,20.925,17.0]
[1680617678924,0.46486906,20.935,20.925,17.0]
[1680617679730,0.46486906,20.935,20.923,7.18696922]
[1680617679932,0.69730359,20.935,20.923,7.18696922]
[1680617680522,0.69730359,20.935,20.923,27.18696922]
[1680617680731,0.23243453,20.935,20.923,27.18696922]
[1680617681026,14.14421355,20.94,20.923,27.18696922]
[1680617681231,20.0,20.943,20.924,17.0]
[1680617681526,20.0,20.942,20.924,17.0]
[1680617681914,0.46436743,20.934,20.924,17.0]
[1680617682636,0.46436743,20.934,20.923,27.18696922]
[1680617682817,20.0,20.942,20.924,17.0]
[1680617683217,20.0,20.942,20.925,20.0]
[1680617683521,20.0,20.942,20.926,17.0]
[1680617683725,20.0,20.943,20.926,17.0]
[1680617683925,0.46787782,20.941,20.926,17.0]
[1680617688016,0.46787782,20.941,20.927,20.0]
[1680617688727,0.46787782,20.941,20.925,20.0]
[1680617688940,0.70181673,20.941,20.925,20.0]
[1680617689139,0.70181673,20.941,20.924,20.0]
[1680617689931,20.0,20.942,20.924,20.0]
[1680617690110,20.0,20.942,20.925,17.0]
[1680617691221,17.0,20.941,20.924,17.0]
[1680617691421,94.48,20.94,20.922,110.3645]
[1680617691819,17.0,20.939,20.922,110.3645]
[1680617692022,20.0,20.938,20.922,110.3645]
[1680617692222,17.0,20.937,20.922,110.3645]
[1680617692421,40.0,20.936,20.922,110.3645]
[1680617692720,20.0,20.936,20.922,110.3645]
[1680617692922,20.0,20.936,20.924,20.0]
[1680617693123,20.0,20.939,20.925,17.0]
[1680617694540,27.24,20.94,20.925,17.0]
[1680617696024,0.46687509,20.939,20.925,17.0]
[1680617696328,20.46687509,20.939,20.925,17.0]
[1680617697328,0.46687509,20.939,20.925,17.0]
[1680617697540,20.46687509,20.939,20.925,17.0]
[1680617700440,0.46687509,20.939,20.925,17.0]
[1680617701262,20.46687509,20.939,20.925,17.0]
[1680617703748,0.46687509,20.939,20.925,17.0]
[1680617707236,20.46687509,20.939,20.925,17.0]
[1680617707952,20.70031263,20.939,20.925,17.0]
[1680617708140,20.70031263,20.939,20.92,20.0]
[1680617708340,17.0,20.938,20.921,37.0]
[1680617708542,0.70031263,20.939,20.921,37.0]
[1680617708849,0.46687509,20.939,20.921,37.0]
[1680617709046,54.48,20.94,20.922,109.7164]
[1680617709233,54.48,20.94,20.923,17.0]
[1680617711949,0.46687509,20.939,20.923,17.0]
[1680617712841,17.46687509,20.939,20.923,17.0]
[1680617713248,0.46687509,20.939,20.923,17.0]
[1680617714654,20.46687509,20.939,20.923,17.0]
[1680617714952,20.70031263,20.939,20.923,17.0]
[1680617715658,0.70031263,20.939,20.923,17.0]
[1680617715858,17.70031263,20.939,20.923,17.0]
[1680617716047,0.70031263,20.939,20.924,20.0]
[1680617716247,0.70031263,20.939,20.925,17.0]
[1680617716947,27.24,20.94,20.924,17.0]
[1680617717858,27.24,20.94,20.923,17.0]
[1680617718957,27.24,20.94,20.924,20.0]
[1680617719160,27.24,20.94,20.925,17.0]
[1680617720058,17.0,20.939,20.922,109.7164]
[1680617720260,17.0,20.939,20.923,17.0]
[1680617720969,0.46637365,20.938,20.923,17.0]
[1680617721951,20.46637365,20.938,20.923,17.0]
[1680617722265,0.46637365,20.938,20.923,17.0]
[1680617722762,20.46637365,20.938,20.923,17.0]
[1680617722964,17.0,20.937,20.922,109.7164]
[1680617723352,0.46637365,20.938,20.922,109.7164]
[1680617723968,20.0,20.938,20.922,109.7164]
[1680617724266,24.18696922,20.937,20.922,109.7164]
[1680617724578,27.18696922,20.936,20.911,139.65503173]
[1680617724754,17.0,20.935,20.911,139.65503173]
[1680617724955,20.0,20.934,20.913,20.0]
[1680617725164,17.0,20.933,20.913,20.0]
[1680617725363,20.0,20.932,20.913,20.0]
[1680617727754,20.0,20.932,20.912,40.0]
[1680617727954,17.0,20.931,20.913,20.0]
[1680617728555,20.0,20.932,20.913,20.0]
[1680617728865,0.46236044,20.93,20.913,20.0]
[1680617729070,0.46236044,20.93,20.914,17.0]
[1680617729255,0.46236044,20.93,20.915,20.0]
[1680617729455,0.46236044,20.93,20.916,17.0]
[1680617729870,0.46236044,20.93,20.917,20.0]
[1680617730173,0.46236044,20.93,20.918,17.0]
[1680617733773,0.46236044,20.93,20.917,133.3216]
[1680617733978,0.69354066,20.93,20.918,17.0]
[1680617734871,0.46236044,20.93,20.918,17.0]
[1680617735060,20.0,20.932,20.918,17.0]
[1680617735573,20.0,20.932,20.917,113.3216]
[1680617735778,17.0,20.931,20.917,113.3216]
[1680617736279,27.09,20.93,20.917,113.3216]
[1680617736867,27.78354065,20.93,20.917,113.3216]
[1680617737977,17.0,20.929,20.917,113.3216]
[1680617738480,20.0,20.928,20.917,113.3216]
[1680617738862,20.0,20.928,20.911,113.8917]
[1680617739065,20.0,20.928,20.912,37.0]
[1680617739368,17.0,20.929,20.913,20.0]
[1680617739557,17.0,20.929,20.912,37.0]
[1680617740580,17.0,20.929,20.913,20.0]
[1680617742081,17.0,20.929,20.912,37.0]
[1680617742376,20.0,20.928,20.912,37.0]
[1680617742566,17.0,20.927,20.912,37.0]
[1680617743577,0.67564059,20.928,20.913,20.0]
[1680617743975,17.0,20.929,20.913,20.0]
[1680617744882,17.0,20.929,20.912,37.0]
[1680617745682,17.0,20.929,20.913,20.0]
[1680617746264,17.0,20.929,20.912,37.0]
[1680617746770,27.09,20.93,20.913,20.0]
[1680617746972,27.09,20.93,20.914,17.0]
[1680617747483,17.0,20.929,20.912,20.0]
[1680617747671,20.0,20.928,20.912,20.0]
[1680617747869,17.0,20.927,20.912,20.0]
[1680617748570,27.09,20.93,20.912,20.0]
[1680617748880,17.0,20.929,20.914,20.0]
[1680617749273,17.0,20.929,20.913,37.0]
[1680617750177,27.09,20.93,20.913,37.0]
[1680617750478,27.09,20.93,20.914,20.0]
[1680617750680,27.09,20.93,20.915,17.0]
[1680617756180,20.0,20.932,20.915,17.0]
[1680617757180,20.0,20.932,20.916,20.0]
[1680617757388,20.0,20.932,20.917,17.0]
[1680617758592,20.0,20.932,20.918,20.0]
[1680617758891,20.0,20.932,20.919,17.0]
[1680617759590,20.0,20.935,20.919,17.0]
[1680617763694,27.18696922,20.935,20.919,17.0]
[1680617764991,17.0,20.934,20.917,17.0]
[1680617765177,20.0,20.933,20.917,17.0]
[1680617765795,137.6233,20.933,20.917,17.0]
[1680617766787,17.0,20.932,20.917,17.0]
[1680617767391,17.0,20.932,20.915,17.0]
[1680617768592,20.0,20.931,20.913,37.0]
[1680617768811,17.0,20.93,20.913,17.0]
[1680617769696,17.0,20.931,20.913,17.0]
[1680617770984,20.0,20.93,20.913,17.0]
[1680617772116,27.24,20.93,20.913,37.0]
[1680617773304,27.24,20.93,20.913,17.0]
[1680617775193,27.24,20.93,20.914,20.0]
[1680617775387,27.24,20.93,20.915,17.0]
[1680617778005,137.6233,20.933,20.915,17.0]
[1680617779495,17.0,20.932,20.915,17.0]
[1680617780989,17.0,20.932,20.914,17.0]
[1680617782098,27.09,20.93,20.914,17.0]
[1680617782301,27.09,20.93,20.913,17.0]
[1680617783002,27.09,20.93,20.912,17.0]
[1680617783203,27.09,20.93,20.913,20.0]
[1680617783395,27.09,20.93,20.914,17.0]
[1680617784099,27.09,20.93,20.912,17.0]
[1680617784297,27.09,20.93,20.913,20.0]
[1680617784502,27.09,20.93,20.914,17.0]
[1680617785404,27.09,20.93,20.911,133.8917]
[1680617785610,27.18696922,20.929,20.911,133.8917]
[1680617785814,27.24,20.92,20.911,20.0]
[1680617786218,20.0,20.919,20.911,20.0]
[1680617787712,27.24,20.92,20.911,20.0]
[1680617788204,20.0,20.919,20.911,20.0]
[1680617791012,20.0,20.925,20.905,17.0]
[1680617791206,20.0,20.924,20.905,17.0]
[1680617792103,20.0,20.926,20.924,0.11091753]
[1680617796414,17.0,20.928,20.924,0.11091753]
[1680617796415,20.0,20.927,20.924,0.11091753]
[1680617799407,27.24,20.93,20.924,0.11091753]
[1680617800211,19.105,20.937,20.924,0.11091753]
[1680617800419,20.0,20.932,20.924,0.11091753]
[1680617802121,20.0,20.931,20.924,0.11091753]
[1680617811125,20.0,20.931,20.924,0.04868628]
[1680617813329,20.0,20.932,20.924,0.04868628]
[1680617813729,20.0,20.931,20.924,0.04868628]
[1680617814521,20.0,20.932,20.924,0.04868628]
[1680617814721,17.0,20.931,20.924,0.04868628]
[1680617815416,20.0,20.93,20.924,0.04868628]
[1680617816531,37.0,20.931,20.924,0.04868628]
[1680617817616,20.0,20.931,20.924,0.04868628]
[1680617817815,17.0,20.93,20.924,0.04868628]
[1680617819830,44.14,20.93,20.924,0.04868628]
[1680617820015,40.0,20.929,20.911,233.66]
[1680617820418,17.0,20.928,20.911,253.66]